Workbook

Sheet Лист1
A1: Школа | C1: МБОУ " Кощаковская СОШ СОШ " | F1: Утвердил: | G1: должность | H1: Заведующая столовой
A2: Типовое примерное меню приготавливаемых блюд | G2: фамилия | H2: Агафонова Л.В..
A3: Возрастная категория | E3: 7-11 лет | G3: дата | J3: 2025
H4: день | I4: месяц | J4: год
A5: Неделя | B5: День недели | C5: Прием пищи | D5: Раздел меню | E5: Блюда | F5: Вес блюда, г | G5: Белки | H5: Жиры | I5: Углеводы | J5: Калорийность | K5: № рецептуры | L5: Цена
A6: 1 | B6: 1 | C6: Завтрак | D6: гор.блюдо | E6: КАША ВЯЗКАЯ МОЛОЧНАЯ ИЗ РИСОВОЙ И ПШЕННОЙ КРУПЫ | F6: 200/5 | G6: 14.734 | H6: 15.962 | I6: 42.563 | J6: 373 | K6: №175/015г.Дели
E7: ОЛАДЬИ - СЭНДВИЧ С ВАРЕНЫМ СГУЩЕНЫМ | F7: 55 | G7: 4.800 | H7: 6.580 | I7: 10.39 | J7: 120 | K7: ТТК от 2025г.
D9: гор.напиток | E9: =[1]Лист1!$C$16 -> ЧАЙ С САХАРОМ | F9: =[1]Лист1!G16 -> 200/8 | G9: 0.011 | H9: 0.007 | I9: 7.998 | J9: 32 | K9: ТТК 2021г
D10: хлеб | E10: БАТОН | F10: 30 | G10: 2.25 | H10: 0.87 | I10: 15.42 | J10: 79
D11: сыр | E11: СЫР ПОРЦИЯМИ | F11: 15 | G11: 3.945 | H11: 3.99 | J11: 53 | K11: № 15/2015г.
D12: фрукты | E12: ПЛОДЫ И ЯГОДЫ СВЕЖИЕ | F12: 100 | G12: 0.4 | H12: 0.4 | I12: 9.8 | J12: 47 | K12: №338/2015г.Дели
D14: итого | G14: 22.546 | H14: 23.916 | I14: 84.79 | J14: =SUM(J6:J13) -> 704
A15: =A6 -> 1 | B15: =B6 -> 1 | C15: Завтрак 2 | D15: фрукты
D18: итого | F18: =SUM(F15:F17) -> 0 | G18: =SUM(G15:G17) -> 0 | H18: 0 | I18: 0 | J18: 0 | L18: 0
A19: =A6 -> 1 | B19: =B6 -> 1 | C19: Обед | D19: закуска | E19: САЛАТ КАПРИЗ | F19: 100 | G19: 2.679 | H19: 12.047 | I19: 5.685 | J19: 144 | K19: ТТК(АКТ к/пр от 10.10.2016
D20: 1 блюдо | E20: СУП ИЗ ОВОЩЕЙ | F20: 250 | G20: 2.863 | H20: 2.261 | I20: 42.592 | J20: 202 | K20: №99/2015г.Дели
E21: ФРИКАДЕЛЬКИ МЯСНЫЕ ДЛЯ СУПОВ | F21: 11 | G21: 2.246 | H21: 1.902 | I21: 0.246 | J21: 27 | K21: ТТК 2022г.
E22: СМЕТАНА | F22: 5 | G22: 0.13 | H22: 0.75 | I22: 0.18 | J22: 8 | K22: ТТК
D23: 2 блюдо | E23: ШАШЛЫК ИЗ КУРИНЫХ ГРУДОК (на шампуре) | F23: 100 | G23: 24.047 | H23: 23.455 | I23: 2.281 | J23: 316
D24: гарнир | E24: МАКАРОННЫЕ ИЗДЕЛИЯ ОТВАРНЫЕ | F24: 180 | G24: 6.722 | H24: 6.079 | I24: 43.083 | J24: 254 | K24: ТТК 2015г. Дели
D25: напиток | E25: КОМПОТ ИЗ СВЕЖИХ ПЛОДОВ (ЯБЛОКИ) | F25: 200 | G25: 0.08 | H25: 0.08 | I25: 11.94 | J25: 49 | K25: ТТК 2021г.
D26: хлеб бел. | E26: ХЛЕБ ПШЕНИЧНЫЙ | F26: 20 | G26: 1.52 | H26: 1.16 | I26: 9.84 | J26: 47
D27: хлеб черн. | E27: ХЛЕБ РЖАНО - ПШЕНИЧНЫЙ | F27: 20 | G27: 1 | H27: 0.2 | I27: 9 | J27: 44
D30: итого | F30: =SUM(F19:F29) -> 886 | G30: =SUM(G19:G29) -> 41.287 | H30: =SUM(H19:H29) -> 47.934 | I30: 117.793 | J30: =SUM(J19:J29) -> 1091 | L30: =SUM(L19:L29) -> 0
A31: =A6 -> 1 | B31: =B6 -> 1 | C31: Полдник | D31: булочное
D32: напиток
D35: итого | F35: =SUM(F31:F34) -> 0 | G35: =SUM(G31:G34) -> 0 | H35: 0 | I35: 0 | J35: 0 | L35: 0
A36: =A6 -> 1 | B36: =B6 -> 1 | C36: Ужин | D36: гор.блюдо
D37: гарнир
D38: напиток
D39: хлеб
D42: итого | F42: =SUM(F36:F41) -> 0 | G42: =SUM(G36:G41) -> 0 | H42: 0 | I42: 0 | J42: 0 | L42: 0
A43: =A6 -> 1 | B43: =B6 -> 1 | C43: Ужин 2 | D43: кисломол.
D44: булочное
D45: напиток
D46: фрукты
D49: итого | F49: =SUM(F43:F48) -> 0 | G49: =SUM(G43:G48) -> 0 | H49: 0 | I49: 0 | J49: 0 | L49: 0
A50: =A6 -> 1 | B50: =B6 -> 1 | C50: Итого за день: | F50: =F14+F18+F30+F35+F42+F49 -> 886 | G50: =G14+G18+G30+G35+G42+G49 -> 63.833 | H50: =H14+H18+H30+H35+H42+H49 -> 71.85 | I50: =I14+I18+I30+I35+I42+I49 -> 202.583 | J50: =J14+J18+J30+J35+J42+J49 -> 1795 | L50: =L14+L18+L30+L35+L42+L49 -> 0
A51: 1 | B51: 2 | C51: Завтрак | D51: гор.блюдо | E51: КАША ВЯЗКАЯ МОЛОЧНАЯ ИЗ ГЕРКУЛЕСОВОЙ КРУПЫ С МАСЛОМ | F51: 200/5 | G51: 14.952 | H51: 16.993 | I51: 45.92 | J51: 396 | K51: №173/2015г.Дели
E52: СЫРНИКИ "КЛАССИЧЕСКИЕ" СО СГУЩЕННЫМ МОЛОКОМ | F52: 35/5 | G52: 9.348 | H52: 8.99 | I52: 12.426 | J52: 168 | K52: ТТК(АКТ к/пр от 26.02.2017
D53: гор.напиток | E53: ЧАЙ С САХАРОМ | F53: =[1]Лист1!G24 -> 200/8 | G53: 0.011 | H53: 0.007 | I53: =[1]Лист1!K24 -> 7.998 | J53: 32 | K53: ТТК 2021г
D54: хлеб | E54: БАТОН | F54: 30 | G54: 2.25 | H54: 0.87 | I54: 15.42 | J54: 79
D56: фрукты | E56: ПЛОДЫ И ЯГОДЫ СВЕЖИЕ (АПЕЛЬСИНЫ) | F56: =[1]Лист1!$G$23 -> 120 | G56: 1.08 | H56: 0.24 | I56: 9.72 | J56: 52 | K56: № 338
D59: итого | G59: =SUM(G51:G58) -> 27.641 | H59: =SUM(H51:H58) -> 27.1 | I59: =SUM(I51:I58) -> 91.484 | J59: =SUM(J51:J58) -> 727
A60: =A51 -> 1 | B60: =B51 -> 2 | C60: Завтрак 2 | D60: фрукты
D63: итого | F63: =SUM(F60:F62) -> 0 | G63: =SUM(G60:G62) -> 0 | H63: =SUM(H60:H62) -> 0 | I63: =SUM(I60:I62) -> 0 | J63: =SUM(J60:J62) -> 0 | L63: 0
A64: =A51 -> 1 | B64: =B51 -> 2 | C64: Обед | D64: закуска | E64: ОВОЩНЫЕ ПАЛОЧКИ ИЗ ОГУРЦОВ | F64: 100 | G64: 0.7 | H64: 0.1 | I64: 1.9 | J64: 11 | K64: ТТК №1444 от 28.05.2021г.
D65: 1 блюдо | E65: СУП ГОРОХОВЫЙ С ГРЕНКАМИ | F65: 250/10 | G65: 12.76 | H65: 8.485 | I65: 38.925 | J65: 283 | K65: № 243 сбор рецепт 1983 г.
D66: 2 блюдо | E66: БИФШТЕКС РУБЛЕНЫЙ ПО ДОМАШНЕМУ ЗАПЕЧЕННЫЙ С ПОМИДОРАМИ И СЫРОМ | F66: 90/10/10 | G66: 16.323 | H66: 20.227 | I66: 14.339 | J66: 305 | K66: ТТК от 2025 г.
D67: гарнир | E67: ПЮРЕ КАРТОФЕЛЬНОЕ | F67: 180 | G67: 4.124 | H67: 5.467 | I67: 40.141 | J67: 226 | K67: №312/2015г. Дели
D68: напиток | E68: НАПИТОК ИЗ УРЮКА | F68: 200 | G68: 0.8 | H68: 0.064 | I68: 18.46 | J68: 79 | K68: ТТК №2693 от 14.09.2023 г.
D69: хлеб бел. | E69: ХЛЕБ ПШЕНИЧНЫЙ | F69: 20 | G69: 1.52 | H69: 1.16 | I69: 9.84 | J69: 47
D70: хлеб черн. | E70: ХЛЕБ РЖАНО-ПШЕНИЧНЫЙ | F70: 20 | G70: 1 | H70: 0.2 | I70: 9 | J70: 44
D73: итого | F73: =SUM(F64:F72) -> 520 | G73: =SUM(G64:G72) -> 37.227 | H73: =SUM(H64:H72) -> 35.703 | I73: =SUM(I64:I72) -> 132.605 | J73: =SUM(J64:J72) -> 995 | L73: 0
A74: =A51 -> 1 | B74: =B51 -> 2 | C74: Полдник | D74: булочное
D75: напиток
D78: итого | F78: =SUM(F74:F77) -> 0 | G78: =SUM(G74:G77) -> 0 | H78: =SUM(H74:H77) -> 0 | I78: =SUM(I74:I77) -> 0 | J78: =SUM(J74:J77) -> 0 | L78: =SUM(L71:L77) -> 0
A79: =A51 -> 1 | B79: =B51 -> 2 | C79: Ужин | D79: гор.блюдо
D80: гарнир
D81: напиток
D82: хлеб
D85: итого | F85: =SUM(F79:F84) -> 0 | G85: =SUM(G79:G84) -> 0 | H85: =SUM(H79:H84) -> 0 | I85: =SUM(I79:I84) -> 0 | J85: =SUM(J79:J84) -> 0 | L85: 0
A86: =A51 -> 1 | B86: =B51 -> 2 | C86: Ужин 2 | D86: кисломол.
D87: булочное
D88: напиток
D89: фрукты
D92: итого | F92: =SUM(F86:F91) -> 0 | G92: =SUM(G86:G91) -> 0 | H92: =SUM(H86:H91) -> 0 | I92: =SUM(I86:I91) -> 0 | J92: =SUM(J86:J91) -> 0 | L92: 0
A93: =A51 -> 1 | B93: =B51 -> 2 | C93: Итого за день: | F93: =F59+F63+F73+F78+F85+F92 -> 520 | G93: =G59+G63+G73+G78+G85+G92 -> 64.868 | H93: =H59+H63+H73+H78+H85+H92 -> 62.803 | I93: =I59+I63+I73+I78+I85+I92 -> 224.089 | J93: =J59+J63+J73+J78+J85+J92 -> 1722 | L93: =L59+L63+L73+L78+L85+L92 -> 0
A94: 1 | B94: 3 | C94: Завтрак | D94: гор.блюдо | E94: КАША ВЯЗКАЯ МОЛОЧНАЯ ИЗ ПОЛБЯНОЙ КРУПЫ С МАСЛОМ | F94: 200/5 | G94: 16.876 | H94: 16.211 | I94: 48.399 | J94: 407 | K94: ТТК № 2213 от 02.12.2022 г
E95: ОЛАДЬИ СО СГУЩЕНЫМ МОЛОКОМ 2 шт/60/10 г (из п/ф 36 г) | F95: 70 | G95: 7.98 | H95: 8.933 | I95: 18.563 | J95: 187 | K95: №202/2015г,Дели
K96: №52/2015г,Дели
D97: гор.напиток | E97: ЧАЙ С САХАРОМ | F97: 200/8 | G97: 0.011 | H97: 0.007 | I97: 7.998 | J97: 32 | K97: ТТК от 2021г
D98: хлеб | E98: ХЛЕБ ПШЕНИЧНЫЙ
D100: фрукты | E100: ПЛОДЫ И ЯГОДЫ СВЕЖИЕ (ЯБЛОКИ) | F100: 100 | G100: 0.4 | H100: 0.4 | I100: 9.8 | J100: 47
D103: итого | F103: =SUM(F94:F102) -> 170 | G103: =SUM(G94:G102) -> 25.267 | H103: =SUM(H94:H102) -> 25.551 | I103: =SUM(I94:I102) -> 84.76 | J103: =SUM(J94:J102) -> 673
A104: =A94 -> 1 | B104: =B94 -> 3 | C104: Завтрак 2 | D104: фрукты
D107: итого | F107: =SUM(F104:F106) -> 0 | G107: =SUM(G104:G106) -> 0 | H107: =SUM(H104:H106) -> 0 | I107: =SUM(I104:I106) -> 0 | J107: =SUM(J104:J106) -> 0 | L107: 0
A108: =A94 -> 1 | B108: =B94 -> 3 | C108: Обед | D108: закуска | E108: САЛАТ ИЗ СВЕЖИХ ПОМИДОРОВ (без лука) | F108: 100 | G108: 1.045 | H108: 6.184 | I108: 3.61 | J108: 77
D109: 1 блюдо | E109: БОРЩ С КАПУСТОЙ И КАРТОФЕЛЕМ | F109: 250 | G109: 1.775 | H109: 5.166 | I109: 41.9 | J109: 221
D110: 2 блюдо | E110: ФРИКАДЕЛЬКИ МЯСНЫЕ ДЛЯ СУПОВ | F110: 11 | G110: 2.246 | H110: 1.902 | I110: 0.246 | J110: 27
D111: котлеты | E111: КОТЛЕТЫ НЕЖНЫЕ | F111: 100 | G111: 26.556 | H111: 22.272 | I111: 18.959 | J111: 383
D112: гарнир | E112: РИС "МОЗАИКА" (с овощами) | F112: 180 | G112: 4.447 | H112: 12.735 | I112: 40.916 | J112: 297
D113: напиток | E113: НАПИТОК ИЗ ВИШНИ | F113: 200 | G113: 0.12 | H113: 0.03 | I113: 11.57 | J113: 48
D114: хлеб бел. | E114: ХЛЕБ ПШЕНИЧНЫЙ | F114: 20 | G114: 1.52 | H114: 0.16 | I114: 9.84 | J114: 47
D115: хлеб черн. | E115: ХЛЕБ РЖАНО-ПШЕНИЧНЫЙ | F115: 20 | G115: 1 | H115: 0.2 | I115: 9 | J115: 44
D116: сметана | E116: СМЕТАНА | F116: 5 | G116: 0.13 | H116: 0.75 | I116: 0.18 | J116: 8
D118: итого | F118: =SUM(F108:F117) -> 886 | G118: =SUM(G108:G117) -> 38.839 | H118: =SUM(H108:H117) -> 49.399 | I118: =SUM(I108:I117) -> 136.221 | J118: =SUM(J108:J117) -> 1152 | L118: 0
A119: =A94 -> 1 | B119: =B94 -> 3 | C119: Полдник | D119: булочное
D120: напиток
D123: итого | F123: =SUM(F119:F122) -> 0 | G123: =SUM(G119:G122) -> 0 | H123: =SUM(H119:H122) -> 0 | I123: =SUM(I119:I122) -> 0 | J123: =SUM(J119:J122) -> 0 | L123: =SUM(L116:L122) -> 0
A124: =A94 -> 1 | B124: =B94 -> 3 | C124: Ужин | D124: гор.блюдо
D125: гарнир
D126: напиток
D127: хлеб
D130: итого | F130: =SUM(F124:F129) -> 0 | G130: =SUM(G124:G129) -> 0 | H130: =SUM(H124:H129) -> 0 | I130: =SUM(I124:I129) -> 0 | J130: =SUM(J124:J129) -> 0 | L130: 0
A131: =A94 -> 1 | B131: =B94 -> 3 | C131: Ужин 2 | D131: кисломол.
D132: булочное
D133: напиток
D134: фрукты
D137: итого | F137: =SUM(F131:F136) -> 0 | G137: =SUM(G131:G136) -> 0 | H137: =SUM(H131:H136) -> 0 | I137: =SUM(I131:I136) -> 0 | J137: =SUM(J131:J136) -> 0 | L137: 0
A138: =A94 -> 1 | B138: =B94 -> 3 | C138: Итого за день: | F138: =F103+F107+F118+F123+F130+F137 -> 1056 | G138: =G103+G107+G118+G123+G130+G137 -> 64.106 | H138: =H103+H107+H118+H123+H130+H137 -> 74.95 | I138: =I103+I107+I118+I123+I130+I137 -> 220.981 | J138: =J103+J107+J118+J123+J130+J137 -> 1825
A139: 1 | B139: 4 | C139: Завтрак | D139: гор.блюдо | E139: КАША ВЯЗКАЯ МОЛОЧНАЯ ИЗ ПШЕННОЙ КРУПЫ С МАСЛОМ | F139: 200/5 | G139: 17.79 | H139: 17.04 | I139: 44.078 | J139: 401
D140: сыр | E140: СЫР ПОРЦИЯМИ | F140: 15 | G140: 3.945 | H140: 3.99 | I140: - | J140: 53
D141: гор.напиток | E141: ЧАЙ С САХАРОМ | F141: 200/8 | G141: 0.011 | H141: 0.007 | I141: 7.998 | J141: 32
D142: хлеб | E142: БАТОН | F142: 30 | G142: 2.25 | H142: 0.87 | I142: 15.42 | J142: 79
D144: фрукты | E144: ПЛОДЫ И ЯГОДЫ СВЕЖИЕ (АПЕЛЬСИНЫ) | F144: 120 | G144: 1.08 | H144: 0.24 | I144: 9.72 | J144: 52
D147: итого | F147: 508 | G147: =SUM(G139:G146) -> 25.076 | H147: =SUM(H139:H146) -> 22.147 | I147: =SUM(I139:I146) -> 77.216 | J147: =SUM(J139:J146) -> 617
A148: =A139 -> 1 | B148: =B139 -> 4 | C148: Завтрак 2 | D148: фрукты
D151: итого | F151: =SUM(F148:F150) -> 0 | G151: =SUM(G148:G150) -> 0 | H151: =SUM(H148:H150) -> 0 | I151: =SUM(I148:I150) -> 0 | J151: =SUM(J148:J150) -> 0 | L151: 0
A152: =A139 -> 1 | B152: =B139 -> 4 | C152: Обед | D152: закуска | E152: АССОРТИ ОВОЩНОЕ (помидоры, огурцы свежие, масло растительное) | F152: 45/45/10 | G152: 0.81 | H152: 10.125 | I152: 2.565 | J152: 106
D153: 1 блюдо | E153: СУП КАРТОФЕЛЬНЫЙ С ВЕРМИШЕЛЬЮ (гр.А) | F153: 250 | G153: 6.86 | H153: 4.048 | I153: 44.875 | J153: 243
D154: 2 блюдо | E154: ГРУДКИ КУРИНЫЕ ОТВАРНЫЕ (филе) | F154: 30 | G154: 7.181 | H154: 6.182 | I154: - | J154: 84
D155: говядина | E155: ГОВЯДИНА СО СТРУЧКОВОЙ ФАСОЛЬЮ | F155: 50/50 | G155: 18.806 | H155: 21.634 | I155: 14.011 | J155: 326
D156: гарнир | E156: КАША ГРЕЧНЕВАЯ РАССЫПЧАТАЯ | F156: 180 | G156: 7.946 | H156: 6.479 | I156: 50.249 | J156: 291
D157: напиток | E157: КОМПОТ ИЗ ЗАМОРОЖЕННОЙ КОМПОТНОЙ СМЕСИ | F157: 200 | G157: 0.135 | H157: 0.023 | I157: 11.15 | J157: 46
D158: хлеб бел. | E158: ХЛЕБ ПШЕНИЧНЫЙ | F158: 20 | G158: 1.52 | H158: 0.16 | I158: 9.84 | J158: 47
D159: хлеб черн. | E159: ХЛЕБ РЖАНО - ПШЕНИЧНЫЙ | F159: 20 | G159: 1 | H159: 0.2 | I159: 9 | J159: 44
D162: итого | F162: =SUM(F152:F161) -> 700 | G162: =SUM(G152:G161) -> 44.258 | H162: =SUM(H152:H161) -> 48.851 | I162: =SUM(I152:I161) -> 141.69 | J162: =SUM(J152:J161) -> 1187 | L162: 0
A163: =A139 -> 1 | B163: =B139 -> 4 | C163: Полдник | D163: булочное
D164: напиток
D167: итого | F167: =SUM(F163:F166) -> 0 | G167: =SUM(G163:G166) -> 0 | H167: =SUM(H163:H166) -> 0 | I167: =SUM(I163:I166) -> 0 | J167: =SUM(J163:J166) -> 0 | L167: =SUM(L160:L166) -> 0
A168: =A139 -> 1 | B168: =B139 -> 4 | C168: Ужин | D168: гор.блюдо
D169: гарнир
D170: напиток
D171: хлеб
D174: итого | F174: =SUM(F168:F173) -> 0 | G174: =SUM(G168:G173) -> 0 | H174: =SUM(H168:H173) -> 0 | I174: =SUM(I168:I173) -> 0 | J174: =SUM(J168:J173) -> 0 | L174: 0
A175: =A139 -> 1 | B175: =B139 -> 4 | C175: Ужин 2 | D175: кисломол.
D176: булочное
D177: напиток
D178: фрукты
D181: итого | F181: =SUM(F175:F180) -> 0 | G181: =SUM(G175:G180) -> 0 | H181: =SUM(H175:H180) -> 0 | I181: =SUM(I175:I180) -> 0 | J181: =SUM(J175:J180) -> 0 | L181: 0
A182: =A139 -> 1 | B182: =B139 -> 4 | C182: Итого за день: | F182: =F147+F151+F162+F167+F174+F181 -> 1208 | G182: =G147+G151+G162+G167+G174+G181 -> 69.334 | H182: =H147+H151+H162+H167+H174+H181 -> 70.998 | I182: =I147+I151+I162+I167+I174+I181 -> 218.906 | J182: =J147+J151+J162+J167+J174+J181 -> 1804
A183: 1 | B183: 5 | C183: Завтрак | D183: гор.блюдо | E183: КАША ВЯЗКАЯ МОЛОЧНАЯ ИЗ РИСОВОЙ КРУПЫ С МАСЛОМ | F183: 200/5 | G183: 15.783 | H183: 15.945 | I183: 48.388 | J183: 400
D186: гор.напиток | E186: ЧАЙ С САХАРОМ | F186: 200/8 | G186: 0.011 | H186: 0.007 | I186: 7.998 | J186: 32
D187: хлеб | E187: БУТЕРБРОД С СЫРОМ | F187: 30/10/10 | G187: 7.96 | H187: 12.78 | I187: 25.5 | J187: 249
D188: напиток | E188: НАПИТОК ОВСЯНЫЙ | F188: 1/200 | G188: 2 | H188: 1 | I188: 22 | J188: 100
D189: фрукты | E189: ПЛОДЫ И ЯГОДЫ СВЕЖИЕ (ЯБЛОКИ) | F189: 100 | G189: 0.4 | H189: 0.4 | I189: 9.8 | J189: 47
D192: итого | F192: =SUM(F183:F191) -> 100 | G192: =SUM(G183:G191) -> 26.154 | H192: =SUM(H183:H191) -> 30.132 | I192: =SUM(I183:I191) -> 113.686 | J192: =SUM(J183:J191) -> 828
A193: =A183 -> 1 | B193: =B183 -> 5 | C193: Завтрак 2 | D193: фрукты
D196: итого | F196: =SUM(F193:F195) -> 0 | G196: =SUM(G193:G195) -> 0 | H196: =SUM(H193:H195) -> 0 | I196: =SUM(I193:I195) -> 0 | J196: =SUM(J193:J195) -> 0 | L196: 0
A197: =A183 -> 1 | B197: =B183 -> 5 | C197: Обед | D197: закуска | E197: САЛАТ УСПЕХ | F197: 100 | G197: 4.456 | H197: 10.541 | I197: 1.451 | J197: 119
D198: 1 блюдо | E198: ЩИ ИЗ СВЕЖЕЙ КАПУСТЫ С КАРТОФЕЛЕМ | F198: 250 | G198: 6.818 | H198: 5.195 | I198: 40.94 | J198: 238
D199: 2 блюдо | E199: КАРБОНАРА (СОУС) С ФИЛЕ КУРИНОЙ ГРУДКИ | F199: 50/50 | G199: 14.982 | H199: 18.361 | I199: 4.887 | J199: 245
D200: гарнир | E200: СПАГЕТТИ ОТВАРНЫЕ | F200: 180 | G200: 6.722 | H200: 6.079 | I200: 43.083 | J200: 254
D201: напиток | E201: НАПИТОК ИЗ ЗАМОРОЖЕННОЙ КЛЮКВЫ | F201: 200 | G201: - | H201: - | I201: 9.98 | J201: 40
D202: хлеб бел. | E202: ХЛЕБ ПШЕНИЧНЫЙ | F202: 20 | G202: 1.52 | H202: 0.16 | I202: 9.84 | J202: 47
D203: хлеб черн. | E203: ХЛЕБ РЖАНО - ПШЕНИЧНЫЙ | F203: 20 | G203: 1 | H203: 0.2 | I203: 9 | J203: 44
D204: сметана | E204: СМЕТАНА | F204: 5 | G204: 0.13 | H204: 0.75 | I204: 0.18 | J204: 8
D206: итого | F206: =SUM(F197:F205) -> 775 | G206: =SUM(G197:G205) -> 35.628 | H206: =SUM(H197:H205) -> 41.286 | I206: =SUM(I197:I205) -> 119.361 | J206: =SUM(J197:J205) -> 995 | L206: 0
A207: =A183 -> 1 | B207: =B183 -> 5 | C207: Полдник | D207: булочное
D208: напиток
D211: итого | F211: =SUM(F207:F210) -> 0 | G211: =SUM(G207:G210) -> 0 | H211: =SUM(H207:H210) -> 0 | I211: =SUM(I207:I210) -> 0 | J211: =SUM(J207:J210) -> 0 | L211: =SUM(L204:L210) -> 0
A212: =A183 -> 1 | B212: =B183 -> 5 | C212: Ужин | D212: гор.блюдо
D213: гарнир
D214: напиток
D215: хлеб
D218: итого | F218: =SUM(F212:F217) -> 0 | G218: =SUM(G212:G217) -> 0 | H218: =SUM(H212:H217) -> 0 | I218: =SUM(I212:I217) -> 0 | J218: =SUM(J212:J217) -> 0 | L218: 0
A219: =A183 -> 1 | B219: =B183 -> 5 | C219: Ужин 2 | D219: кисломол.
D220: булочное
D221: напиток
D222: фрукты
D225: итого | F225: =SUM(F219:F224) -> 0 | G225: =SUM(G219:G224) -> 0 | H225: =SUM(H219:H224) -> 0 | I225: =SUM(I219:I224) -> 0 | J225: =SUM(J219:J224) -> 0 | L225: 0
A226: =A183 -> 1 | B226: =B183 -> 5 | C226: Итого за день: | F226: =F192+F196+F206+F211+F218+F225 -> 875 | G226: =G192+G196+G206+G211+G218+G225 -> 61.782 | H226: =H192+H196+H206+H211+H218+H225 -> 71.418 | I226: =I192+I196+I206+I211+I218+I225 -> 233.047 | J226: =J192+J196+J206+J211+J218+J225 -> 1823
A227: 1 | B227: 6 | C227: Завтрак | D227: гор.блюдо | E227: КАША ВЯЗКАЯ МОЛОЧНАЯ ИЗ ГЕРКУЛЕСОВОЙ КРУПЫ С МАСЛОМ | F227: 200/5 | G227: 14.952 | H227: 16.993 | I227: 45.92 | J227: 396
D228: сырники | E228: СЫРНИКИ "КЛАССИЧЕСКИЕ" со сгущенным молоком | F228: 70/10 | G228: 18.876 | H228: 17.98 | I228: 24.852 | J228: 337
D229: гор.напиток | E229: ЧАЙ С САХАРОМ | F229: 200/8 | G229: 0.011 | H229: 0.007 | I229: 7.998 | J229: 32
D230: хлеб | E230: БАТОН | F230: 30 | G230: 2.25 | H230: 0.87 | I230: 15.42 | J230: 79
D232: фрукты | E232: ПЛОДЫ И ЯГОДЫ СВЕЖИЕ (АПЕЛЬСИНЫ) | F232: =[1]Лист1!$G$23 -> 120 | G232: 1.08 | H232: 0.24 | I232: 9.72 | J232: 52
D235: итого | F235: =SUM(F227:F234) -> 150 | G235: =SUM(G227:G234) -> 37.169 | H235: =SUM(H227:H234) -> 36.09 | I235: =SUM(I227:I234) -> 103.91 | J235: =SUM(J227:J234) -> 896
A236: =A227 -> 1 | B236: =B227 -> 6 | C236: Завтрак 2 | D236: фрукты
D239: итого | F239: =SUM(F236:F238) -> 0 | G239: =SUM(G236:G238) -> 0 | H239: =SUM(H236:H238) -> 0 | I239: =SUM(I236:I238) -> 0 | J239: =SUM(J236:J238) -> 0 | L239: 0
A240: =A227 -> 1 | B240: =B227 -> 6 | C240: Обед | D240: закуска | E240: САЛАТ ИЗ СВЕЖИХ ОГУРЦОВ | F240: 100 | G240: 0.665 | H240: 6.089 | I240: 1.805 | J240: 64
D241: 1 блюдо | E241: СУП КАРТОФЕЛЬНЫЙ С КРУПОЙ (рис) | F241: 250 | G241: 8.12 | H241: 4.878 | I241: 47.435 | J241: 266
D242: 2 блюдо | E242: ПЕЛЬМЕНИ ДЛЯ УМНИКОВ И УМНИЦ ОТВАРНЫЕ С МАСЛОМ СЛИВОЧНЫМ | F242: 200/5 | G242: 22.716 | H242: 21.773 | I242: 52.104 | J242: 495
D243: печенье | E243: ПЕЧЕНЬЕ СДОБНОЕ ВКУСНОЕ | F243: 30 | G243: 2.216 | H243: 8.233 | I243: 18.848 | J243: 158
D244: напиток | E244: НАПИТОК ИЗ ВИШНИ | F244: 200 | G244: 0.12 | H244: 0.03 | I244: 11.57 | J244: 48
D245: хлеб бел. | E245: ХЛЕБ ПШЕНИЧНЫЙ | F245: 20 | G245: 1.52 | H245: 0.16 | I245: 9.84 | J245: 47
D246: хлеб черн. | E246: ХЛЕБ РЖАНО - ПШЕНИЧНЫЙ | F246: 20 | G246: 1 | H246: 0.2 | I246: 9 | J246: 44
D249: итого | F249: =SUM(F240:F248) -> 620 | G249: =SUM(G240:G248) -> 36.357 | H249: =SUM(H240:H248) -> 41.363 | I249: =SUM(I240:I248) -> 150.602 | J249: =SUM(J240:J248) -> 1122 | L249: 0
A250: =A227 -> 1 | B250: =B227 -> 6 | C250: Полдник | D250: булочное
D251: напиток
D254: итого | F254: =SUM(F250:F253) -> 0 | G254: =SUM(G250:G253) -> 0 | H254: =SUM(H250:H253) -> 0 | I254: =SUM(I250:I253) -> 0 | J254: =SUM(J250:J253) -> 0 | L254: =SUM(L247:L253) -> 0
A255: =A227 -> 1 | B255: =B227 -> 6 | C255: Ужин | D255: гор.блюдо
D256: гарнир
D257: напиток
D258: хлеб
D261: итого | F261: =SUM(F255:F260) -> 0 | G261: =SUM(G255:G260) -> 0 | H261: =SUM(H255:H260) -> 0 | I261: =SUM(I255:I260) -> 0 | J261: =SUM(J255:J260) -> 0 | L261: 0
A262: =A227 -> 1 | B262: =B227 -> 6 | C262: Ужин 2 | D262: кисломол.
D263: булочное
D264: напиток
D265: фрукты
D268: итого | F268: =SUM(F262:F267) -> 0 | G268: =SUM(G262:G267) -> 0 | H268: =SUM(H262:H267) -> 0 | I268: =SUM(I262:I267) -> 0 | J268: =SUM(J262:J267) -> 0 | L268: 0
A269: =A227 -> 1 | B269: =B227 -> 6 | C269: Итого за день: | F269: =F235+F239+F249+F254+F261+F268 -> 770 | G269: =G235+G239+G249+G254+G261+G268 -> 73.526 | H269: =H235+H239+H249+H254+H261+H268 -> 77.453 | I269: =I235+I239+I249+I254+I261+I268 -> 254.512 | J269: =J235+J239+J249+J254+J261+J268 -> 2018 | L269: =L235+L239+L249+L254+L261+L268 -> 0
A270: 1 | B270: 7 | C270: Завтрак | D270: гор.блюдо
D272: гор.напиток
D273: хлеб
D274: фрукты
D277: итого | F277: =SUM(F270:F276) -> 0 | G277: =SUM(G270:G276) -> 0 | H277: =SUM(H270:H276) -> 0 | I277: =SUM(I270:I276) -> 0 | J277: =SUM(J270:J276) -> 0 | L277: =SUM(L270:L276) -> 0
A278: =A270 -> 1 | B278: =B270 -> 7 | C278: Завтрак 2 | D278: фрукты
D281: итого | F281: =SUM(F278:F280) -> 0 | G281: =SUM(G278:G280) -> 0 | H281: =SUM(H278:H280) -> 0 | I281: =SUM(I278:I280) -> 0 | J281: =SUM(J278:J280) -> 0 | L281: 0
... 243 more rows
